[Event "Kwalificatie NJK A Groningen"]
[Site "Hoogkerk, Netherlands"]
[Date "2023.02.18"]
[Round "2.10"]
[White "Bos, Eric"]
[Black "Van Den Berg, Leon"]
[Result "1-0"]
[TimeControl "55 min. + 10 sec./zet"]
[WhiteElo "1596"]
[BlackElo "1766"]

1. e4 {[%clk 00:55:17]} {[%emt 00:00:02]} e5 {[%clk 00:55:13]} {[%emt
00:00:07]} 2. Nf3 {[%clk 00:55:22]} {[%emt 00:00:05]} Nc6 {[%clk 00:55:14]}
{[%emt 00:00:09]} 3. Bb5 {[%clk 00:55:23]} {[%emt 00:00:09]} Bc5 {[%clk
00:54:51]} {[%emt 00:00:33]} 4. O-O {[%clk 00:55:15]} {[%emt 00:00:18]} Nge7
{[%clk 00:54:31]} {[%emt 00:00:30]} 5. c3 {[%clk 00:54:45]} {[%emt 00:00:40]}
O-O {[%clk 00:52:37]} {[%emt 00:02:03]} 6. d4 {[%clk 00:53:55]} {[%emt
00:01:01]} Bd6 {[%clk 00:51:03]} {[%emt 00:01:45]} 7. Nbd2 {[%clk 00:49:12]}
{[%emt 00:04:52]} a6 {[%clk 00:48:50]} {[%emt 00:02:24]} 8. Bxc6 {[%clk
00:48:20]} {[%emt 00:01:01]} Nxc6 {[%clk 00:48:29]} {[%emt 00:00:31]} 9. d5
{[%clk 00:46:31]} {[%emt 00:01:59]} Ne7 {[%clk 00:48:13]} {[%emt 00:00:26]} 10.
Nc4 {[%clk 00:44:27]} {[%emt 00:02:14]} Bc5 {[%clk 00:46:07]} {[%emt 00:02:16]}
11. Ncxe5 {[%clk 00:41:58]} {[%emt 00:02:38]} d6 {[%clk 00:46:03]} {[%emt
00:00:15]} 12. Nd3 {[%clk 00:41:50]} {[%emt 00:00:17]} Bb6 {[%clk 00:46:02]}
{[%emt 00:00:11]} 13. h3 {[%clk 00:40:21]} {[%emt 00:01:40]} h6 {[%clk
00:45:42]} {[%emt 00:00:30]} 14. Re1 {[%clk 00:39:33]} {[%emt 00:00:58]} f5
{[%clk 00:44:44]} {[%emt 00:01:08]} 15. exf5 {[%clk 00:36:32]} {[%emt
00:03:11]} Bxf5 {[%clk 00:42:25]} {[%emt 00:02:29]} 16. c4 {[%clk 00:32:08]}
{[%emt 00:04:33]} Ng6 {[%clk 00:39:20]} {[%emt 00:03:16]} 17. Be3 {[%clk
00:28:31]} {[%emt 00:03:47]} Be4 {[%clk 00:36:09]} {[%emt 00:03:22]} 18. Nd4
{[%clk 00:25:59]} {[%emt 00:02:40]} Qf6 {[%clk 00:26:47]} {[%emt 00:09:32]} 19.
Ne6 {[%clk 00:19:11]} {[%emt 00:06:59]} Bxe3 {[%clk 00:24:36]} {[%emt
00:02:21]} 20. Nxf8 {[%clk 00:17:00]} {[%emt 00:02:21]} Bxd3 {[%clk 00:22:34]}
{[%emt 00:02:12]} 21. Rxe3 {[%clk 00:16:03]} {[%emt 00:01:07]} Rxf8 {[%clk
00:21:27]} {[%emt 00:01:17]} 22. Qxd3 {[%clk 00:14:21]} {[%emt 00:01:52]} Qxf2+
{[%clk 00:21:15]} {[%emt 00:00:22]} 23. Kh1 {[%clk 00:12:46]} {[%emt 00:01:45]}
Nf4 {[%clk 00:21:13]} {[%emt 00:00:12]} 24. Qe4 {[%clk 00:11:42]} {[%emt
00:01:13]} Nh5 {[%clk 00:16:59]} {[%emt 00:04:25]} 25. Kh2 {[%clk 00:09:25]}
{[%emt 00:02:26]} Nf6 {[%clk 00:13:47]} {[%emt 00:03:23]} 26. Qe6+ {[%clk
00:08:44]} {[%emt 00:00:51]} Kh8 {[%clk 00:13:55]} {[%emt 00:00:03]} 27. Re2
{[%clk 00:07:51]} {[%emt 00:01:02]} Qf4+ {[%clk 00:13:16]} {[%emt 00:00:49]} 28.
Kh1 {[%clk 00:07:13]} {[%emt 00:00:48]} Re8 {[%clk 00:12:32]} {[%emt 00:00:55]}
29. Qxe8+ {[%clk 00:05:35]} {[%emt 00:01:47]} Nxe8 {[%clk 00:12:41]} {[%emt
00:00:01]} 30. Rxe8+ {[%clk 00:05:43]} {[%emt 00:00:02]} Kh7 {[%clk 00:12:49]}
{[%emt 00:00:02]} 31. b3 {[%clk 00:05:01]} {[%emt 00:00:52]} b5 {[%clk
00:12:45]} {[%emt 00:00:15]} 32. cxb5 {[%clk 00:04:00]} {[%emt 00:01:11]} axb5
{[%clk 00:12:38]} {[%emt 00:00:16]} 33. a4 {[%clk 00:03:15]} {[%emt 00:00:56]}
Qd4 {[%clk 00:12:23]} {[%emt 00:00:25]} 34. Ra3 {[%clk 00:02:34]} {[%emt
00:00:50]} Qd1+ {[%clk 00:06:55]} {[%emt 00:05:38]} 35. Kh2 {[%clk 00:02:35]}
{[%emt 00:00:09]} Qc1 {[%clk 00:06:52]} {[%emt 00:00:14]} 36. Ra2 {[%clk
00:02:24]} {[%emt 00:00:20]} Qf4+ {[%clk 00:06:48]} {[%emt 00:00:14]} 37. g3
{[%clk 00:01:55]} {[%emt 00:00:39]} Qf7 {[%clk 00:06:02]} {[%emt 00:00:56]} 38.
Ree2 {[%clk 00:01:28]} {[%emt 00:00:37]} Qxd5 {[%clk 00:05:26]} {[%emt
00:00:47]} 39. a5 {[%clk 00:01:35]} {[%emt 00:00:02]} Qa8 {[%clk 00:04:59]}
{[%emt 00:00:37]} 40. a6 {[%clk 00:01:30]} {[%emt 00:00:15]} c5 {[%clk
00:04:33]} {[%emt 00:00:36]} 41. a7 {[%clk 00:01:37]} {[%emt 00:00:04]} d5
{[%clk 00:04:25]} {[%emt 00:00:17]} 42. Re8 {[%clk 00:01:40]} {[%emt 00:00:07]}
Qxe8 {[%clk 00:04:01]} {[%emt 00:00:34]} 43. a8=Q {[%clk 00:01:48]} {[%emt
00:00:03]} Qe6 {[%clk 00:03:59]} {[%emt 00:00:12]} 44. Qa6 {[%clk 00:01:16]}
{[%emt 00:00:42]} Qd7 {[%clk 00:02:48]} {[%emt 00:01:20]} 45. Qb6 {[%clk
00:00:59]} {[%emt 00:00:28]} c4 {[%clk 00:02:49]} {[%emt 00:00:08]} 46. bxc4
{[%clk 00:01:03]} {[%emt 00:00:07]} dxc4 {[%clk 00:02:50]} {[%emt 00:00:09]} 47.
Qc5 {[%clk 00:00:47]} {[%emt 00:00:26]} Qe8 {[%clk 00:02:02]} {[%emt 00:00:57]}
48. Qf5+ {[%clk 00:00:41]} {[%emt 00:00:16]} Kg8 {[%clk 00:01:30]} {[%emt
00:00:41]} 49. Qd5+ {[%clk 00:00:39]} {[%emt 00:00:13]} Kh7 {[%clk 00:01:21]}
{[%emt 00:00:19]} 50. Rb2 {[%clk 00:00:40]} {[%emt 00:00:09]} c3 {[%clk
00:01:10]} {[%emt 00:00:22]} 51. Qd3+ {[%clk 00:00:46]} {[%emt 00:00:03]} 1-0

[Event "Kwalificatie NJK A Groningen"]
[Site "Hoogkerk, Netherlands"]
[Date "2023.02.18"]
[Round "2.11"]
[White "Pijls, Coun"]
[Black "Visser, Yoram"]
[Result "1-0"]
[TimeControl "55 min. + 10 sec./zet"]
[WhiteElo "1651"]
[BlackElo "891"]

1. d4 {[%clk 00:55:15]} {[%emt 00:00:05]} Nf6 {[%clk 00:55:06]} {[%emt
00:00:14]} 2. c4 {[%clk 00:55:20]} {[%emt 00:00:05]} g6 {[%emt 00:00:13]} 3.
Nc3 {[%emt 00:00:05]} Bg7 {[%clk 00:53:54]} {[%emt 00:00:21]} 4. e4 {[%clk
00:55:24]} {[%emt 00:00:50]} d6 {[%clk 00:52:09]} {[%emt 00:00:07]} 5. Nge2
{[%clk 00:55:21]} {[%emt 00:02:01]} O-O {[%clk 00:52:04]} {[%emt 00:00:15]} 6.
Ng3 {[%clk 00:54:42]} {[%emt 00:00:49]} Nbd7 {[%clk 00:49:32]} {[%emt
00:02:42]} 7. Be3 {[%clk 00:52:46]} {[%emt 00:02:06]} c6 {[%clk 00:47:46]}
{[%emt 00:01:57]} 8. Be2 {[%clk 00:52:29]} {[%emt 00:00:27]} Re8 {[%clk
00:44:45]} {[%emt 00:03:11]} 9. Qd2 {[%clk 00:52:13]} {[%emt 00:00:26]} e5
{[%clk 00:43:20]} {[%emt 00:01:35]} 10. d5 {[%clk 00:52:18]} {[%emt 00:00:05]}
c5 {[%clk 00:42:21]} {[%emt 00:01:09]} 11. h4 {[%clk 00:51:15]} {[%emt
00:01:12]} Nb6 {[%clk 00:39:44]} {[%emt 00:02:47]} 12. h5 {[%clk 00:49:50]}
{[%emt 00:01:35]} Bg4 {[%clk 00:36:28]} {[%emt 00:03:26]} 13. f3 {[%clk
00:44:14]} {[%emt 00:05:47]} Bxh5 {[%clk 00:28:19]} {[%emt 00:08:19]} 14. Bg5
{[%clk 00:43:56]} {[%emt 00:00:28]} Nbd7 {[%clk 00:19:51]} {[%emt 00:08:38]} 15.
Nxh5 {[%clk 00:39:17]} {[%emt 00:04:48]} gxh5 {[%clk 00:19:08]} {[%emt
00:00:54]} 16. Nb5 {[%clk 00:34:08]} {[%emt 00:05:20]} Qc8 {[%clk 00:19:02]}
{[%emt 00:00:16]} 17. Nxd6 {[%clk 00:33:59]} {[%emt 00:00:19]} Qc7 {[%clk
00:17:59]} {[%emt 00:01:13]} 18. Nf5 {[%clk 00:30:46]} {[%emt 00:03:23]} Qb6
{[%clk 00:15:27]} {[%emt 00:02:42]} 19. Bh6 {[%clk 00:29:46]} {[%emt 00:01:09]}
Nxe4 {[%clk 00:08:46]} {[%emt 00:06:51]} 20. fxe4 {[%clk 00:29:23]} {[%emt
00:00:33]} Bxh6 {[%clk 00:06:25]} {[%emt 00:02:30]} 21. Qxh6 {[%clk 00:27:33]}
{[%emt 00:02:00]} Qxh6 {[%clk 00:06:30]} {[%emt 00:00:06]} 22. Nxh6+ {[%clk
00:27:32]} {[%emt 00:00:11]} Kg7 {[%clk 00:06:27]} {[%emt 00:00:13]} 23. Nf5+
{[%clk 00:27:07]} {[%emt 00:00:34]} Kg8 {[%clk 00:06:22]} {[%emt 00:00:15]} 24.
Bxh5 {[%clk 00:26:27]} {[%emt 00:00:50]} Nf6 {[%clk 00:05:27]} {[%emt
00:01:05]} 25. Bf3 {[%clk 00:26:17]} {[%emt 00:00:20]} Rab8 {[%clk 00:04:56]}
{[%emt 00:00:41]} 26. O-O-O {[%clk 00:25:37]} {[%emt 00:00:51]} b5 {[%clk
00:04:26]} {[%emt 00:00:40]} 27. Nd6 {[%clk 00:25:39]} {[%emt 00:00:07]} Red8
{[%clk 00:04:25]} {[%emt 00:00:10]} 28. Nxb5 {[%clk 00:25:47]} {[%emt
00:00:03]} 1-0

[Event "Kwalificatie NJK A Groningen"]
[Site "Hoogkerk, Netherlands"]
[Date "2023.02.18"]
[Round "3.1"]
[White "Slagboom, Leandro"]
[Black "Adams, Oscar"]
[Result "1-0"]
[TimeControl "55 min. + 10 sec./zet"]
[WhiteElo "2201"]
[BlackElo "1729"]

1. e4 {[%clk 00:55:17]} {[%emt 00:00:02]} c5 {[%clk 00:55:15]} {[%emt
00:00:05]} 2. Nf3 {[%clk 00:55:23]} {[%emt 00:00:05]} Nc6 {[%clk 00:55:21]}
{[%emt 00:00:05]} 3. d4 {[%clk 00:55:28]} {[%emt 00:00:04]} cxd4 {[%clk
00:55:28]} {[%emt 00:00:04]} 4. Nxd4 {[%clk 00:55:33]} {[%emt 00:00:04]} Nf6
{[%clk 00:55:13]} {[%emt 00:00:25]} 5. Nc3 {[%clk 00:55:36]} {[%emt 00:00:06]}
d6 {[%clk 00:55:03]} {[%emt 00:00:21]} 6. Bg5 {[%clk 00:55:40]} {[%emt
00:00:06]} Nd7 {[%clk 00:53:55]} {[%emt 00:01:18]} 7. Bb5 {[%clk 00:49:40]}
{[%emt 00:06:09]} Nxd4 {[%clk 00:50:57]} {[%emt 00:03:08]} 8. Qxd4 {[%clk
00:49:41]} {[%emt 00:00:10]} a6 {[%clk 00:50:37]} {[%emt 00:00:30]} 9. Bxd7+
{[%clk 00:48:31]} {[%emt 00:01:19]} Bxd7 {[%clk 00:50:26]} {[%emt 00:00:22]} 10.
O-O-O {[%clk 00:43:46]} {[%emt 00:04:56]} Rc8 {[%clk 00:47:42]} {[%emt
00:02:54]} 11. Nd5 {[%clk 00:40:23]} {[%emt 00:03:32]} Qa5 {[%clk 00:46:12]}
{[%emt 00:01:40]} 12. Bxe7 {[%clk 00:36:54]} {[%emt 00:03:39]} Bxe7 {[%clk
00:43:53]} {[%emt 00:02:30]} 13. Qxg7 {[%clk 00:32:48]} {[%emt 00:04:15]} Rf8
{[%clk 00:40:51]} {[%emt 00:03:12]} 14. e5 {[%clk 00:27:43]} {[%emt 00:05:15]}
Bf5 {[%clk 00:31:12]} {[%emt 00:09:48]} 15. Ne3 {[%clk 00:26:23]} {[%emt
00:01:30]} Bg6 {[%clk 00:25:30]} {[%emt 00:05:52]} 16. exd6 {[%clk 00:25:27]}
{[%emt 00:01:07]} Bg5 {[%clk 00:17:38]} {[%emt 00:08:02]} 17. d7+ {[%clk
00:24:12]} {[%emt 00:01:25]} Ke7 {[%clk 00:17:43]} {[%emt 00:00:06]} 18.
dxc8=N+ {[%clk 00:22:33]} {[%emt 00:01:48]} Rxc8 {[%clk 00:17:46]} {[%emt
00:00:07]} 19. Kb1 {[%clk 00:21:03]} {[%emt 00:01:40]} Bf6 {[%clk 00:16:02]}
{[%emt 00:01:54]} 20. Nd5+ {[%clk 00:19:19]} {[%emt 00:01:54]} Qxd5 {[%clk
00:15:55]} {[%emt 00:00:17]} 21. Rhe1+ {[%clk 00:16:08]} {[%emt 00:03:21]} Qe4
{[%clk 00:10:05]} {[%emt 00:06:00]} 22. Qxg6 {[%clk 00:15:38]} {[%emt
00:00:40]} 1-0

[Event "Kwalificatie NJK A Groningen"]
[Site "Hoogkerk, Netherlands"]
[Date "2023.02.18"]
[Round "3.2"]
[White "De Vries, Arjan"]
[Black "Van Kuijk, Vadim"]
[Result "0-1"]
[TimeControl "55 min. + 10 sec./zet"]
[WhiteElo "1645"]
[BlackElo "2023"]

1. e4 {[%clk 00:55:19]} c6 {[%clk 00:52:22]} {[%emt 00:02:59]} 2. Bd3 {[%clk
00:54:58]} {[%emt 00:00:31]} d5 {[%clk 00:48:02]} {[%emt 00:04:29]} 3. e5
{[%clk 00:55:04]} {[%emt 00:00:05]} c5 {[%clk 00:38:51]} {[%emt 00:09:21]} 4.
c3 {[%clk 00:55:09]} {[%emt 00:00:04]} Nc6 {[%clk 00:38:26]} {[%emt 00:00:35]}
5. f4 {[%clk 00:55:14]} {[%emt 00:00:06]} Nh6 {[%clk 00:36:06]} {[%emt
00:02:30]} 6. Nf3 {[%clk 00:54:51]} {[%emt 00:00:33]} Bf5 {[%clk 00:35:38]}
{[%emt 00:00:38]} 7. Bxf5 {[%clk 00:54:07]} {[%emt 00:00:54]} Nxf5 {[%clk
00:35:46]} {[%emt 00:00:02]} 8. d4 {[%clk 00:53:56]} {[%emt 00:00:20]} e6
{[%clk 00:35:16]} {[%emt 00:00:40]} 9. a4 {[%clk 00:51:58]} {[%emt 00:02:09]}
cxd4 {[%clk 00:34:17]} {[%emt 00:01:09]} 10. cxd4 {[%clk 00:51:45]} {[%emt
00:00:23]} Qb6 {[%clk 00:30:37]} {[%emt 00:03:49]} 11. O-O {[%clk 00:49:44]}
{[%emt 00:02:11]} Ncxd4 {[%clk 00:24:54]} {[%emt 00:05:53]} 12. Kh1 {[%clk
00:49:46]} {[%emt 00:00:08]} Nb3 {[%clk 00:22:56]} {[%emt 00:02:08]} 13. a5
{[%clk 00:49:32]} {[%emt 00:00:25]} Qb4 {[%clk 00:21:09]} {[%emt 00:01:57]} 14.
Bd2 {[%clk 00:48:58]} {[%emt 00:00:44]} Nxd2 {[%clk 00:21:12]} {[%emt
00:00:06]} 15. Nbxd2 {[%clk 00:49:02]} {[%emt 00:00:06]} Ne3 {[%clk 00:19:18]}
{[%emt 00:02:04]} 16. Ra4 {[%clk 00:48:26]} {[%emt 00:00:46]} Nxd1 {[%clk
00:18:16]} {[%emt 00:01:12]} 17. Rxb4 {[%clk 00:48:28]} {[%emt 00:00:08]} Bxb4
{[%clk 00:18:22]} {[%emt 00:00:04]} 18. Rxd1 {[%clk 00:48:32]} {[%emt
00:00:07]} O-O {[%clk 00:17:43]} {[%emt 00:00:49]} 19. Nb3 {[%clk 00:48:35]}
{[%emt 00:00:07]} Rac8 {[%clk 00:17:24]} {[%emt 00:00:28]} 20. f5 {[%clk
00:48:35]} {[%emt 00:00:10]} exf5 {[%clk 00:16:42]} {[%emt 00:00:52]} 21. Rxd5
{[%clk 00:48:32]} {[%emt 00:00:14]} Rfd8 {[%clk 00:15:20]} {[%emt 00:01:31]} 22.
Rb5 {[%clk 00:48:34]} {[%emt 00:00:08]} Rd1+ {[%clk 00:15:26]} {[%emt
00:00:04]} 23. Ng1 {[%clk 00:48:40]} {[%emt 00:00:05]} Be1 {[%clk 00:15:26]}
{[%emt 00:00:10]} 24. Rxb7 {[%clk 00:48:14]} {[%emt 00:00:36]} Bf2 {[%clk
00:15:29]} {[%emt 00:00:06]} 25. h3 {[%clk 00:48:22]} {[%emt 00:00:02]} f4
{[%clk 00:14:13]} {[%emt 00:01:26]} 26. g4 {[%clk 00:48:29]} {[%emt 00:00:03]}
f3 {[%clk 00:13:40]} {[%emt 00:00:43]} 27. Nd2 {[%clk 00:48:11]} {[%emt
00:00:28]} Rxg1+ {[%clk 00:13:26]} {[%emt 00:00:24]} 28. Kh2 {[%clk 00:48:17]}
{[%emt 00:00:04]} Rg2+ {[%clk 00:13:29]} {[%emt 00:00:07]} 0-1

[Event "Kwalificatie NJK A Groningen"]
[Site "Hoogkerk, Netherlands"]
[Date "2023.02.18"]
[Round "3.3"]
[White "Knol, DaniÃ«l"]
[Black "Van Den Berg, Mees"]
[Result "1-0"]
[TimeControl "55 min. + 10 sec./zet"]
[WhiteElo "1807"]
[BlackElo "1702"]

1. e4 {[%clk 00:52:33]} {[%emt 00:02:30]} e5 {[%clk 00:55:05]} {[%emt
00:00:14]} 2. Nf3 {[%clk 00:52:36]} {[%emt 00:00:08]} Nc6 {[%clk 00:55:08]}
{[%emt 00:00:07]} 3. Bc4 {[%clk 00:52:43]} {[%emt 00:00:02]} Bc5 {[%clk
00:55:13]} {[%emt 00:00:06]} 4. c3 {[%clk 00:52:50]} {[%emt 00:00:03]} Nf6
{[%clk 00:55:17]} {[%emt 00:00:05]} 5. d3 {[%clk 00:52:59]} {[%emt 00:00:02]}
d6 {[%clk 00:55:20]} {[%emt 00:00:06]} 6. a4 {[%clk 00:52:59]} {[%emt
00:00:10]} a5 {[%clk 00:54:21]} {[%emt 00:01:10]} 7. O-O {[%clk 00:52:51]}
{[%emt 00:00:17]} O-O {[%clk 00:54:24]} {[%emt 00:00:08]} 8. Re1 {[%clk
00:52:58]} {[%emt 00:00:03]} Be6 {[%clk 00:48:01]} {[%emt 00:06:32]} 9. Nbd2
{[%clk 00:53:00]} {[%emt 00:00:08]} Bxc4 {[%clk 00:39:16]} {[%emt 00:08:56]} 10.
Nxc4 {[%clk 00:53:08]} {[%emt 00:00:02]} Qb8 {[%clk 00:39:10]} {[%emt
00:00:16]} 11. Be3 {[%clk 00:52:24]} {[%emt 00:00:54]} Qa7 {[%clk 00:37:49]}
{[%emt 00:01:30]} 12. Bxc5 {[%clk 00:51:51]} {[%emt 00:00:43]} Qxc5 {[%clk
00:37:53]} {[%emt 00:00:07]} 13. Qb3 {[%clk 00:50:35]} {[%emt 00:01:26]} Rfe8
{[%clk 00:33:30]} {[%emt 00:04:33]} 14. Rad1 {[%clk 00:50:38]} {[%emt
00:00:06]} Qa7 {[%clk 00:32:45]} {[%emt 00:00:55]} 15. Ne3 {[%clk 00:50:13]}
{[%emt 00:00:36]} h6 {[%clk 00:30:36]} {[%emt 00:02:19]} 16. Nd5 {[%clk
00:46:00]} {[%emt 00:04:23]} Nxd5 {[%clk 00:30:06]} {[%emt 00:00:40]} 17. exd5
{[%clk 00:46:09]} {[%emt 00:00:01]} Ne7 {[%clk 00:25:49]} {[%emt 00:04:27]} 18.
d4 {[%clk 00:46:12]} {[%emt 00:00:07]} exd4 {[%clk 00:24:58]} {[%emt 00:01:01]}
19. Rxd4 {[%clk 00:43:54]} {[%emt 00:02:28]} Ng6 {[%clk 00:22:17]} {[%emt
00:02:52]} 20. Rde4 {[%clk 00:43:52]} {[%emt 00:00:11]} Rxe4 {[%clk 00:21:04]}
{[%emt 00:01:22]} 21. Rxe4 {[%clk 00:44:00]} {[%emt 00:00:03]} Kf8 {[%clk
00:18:15]} {[%emt 00:02:59]} 22. Qb5 {[%clk 00:41:53]} {[%emt 00:02:17]} Rd8
{[%clk 00:12:36]} {[%emt 00:05:48]} 23. h4 {[%clk 00:39:45]} {[%emt 00:02:19]}
Ne7 {[%clk 00:09:45]} {[%emt 00:03:01]} 24. Nd4 {[%clk 00:39:14]} {[%emt
00:00:41]} Qc5 {[%clk 00:08:49]} {[%emt 00:01:05]} 25. Qxb7 {[%clk 00:33:07]}
{[%emt 00:06:18]} Re8 {[%clk 00:02:13]} {[%emt 00:06:46]} 26. c4 {[%clk
00:24:52]} {[%emt 00:08:25]} Ng6 {[%clk 00:00:32]} {[%emt 00:01:50]} 27. Rxe8+
{[%clk 00:17:32]} {[%emt 00:07:31]} Kxe8 {[%clk 00:00:41]} {[%emt 00:00:02]} 28.
Qc8+ {[%clk 00:17:41]} {[%emt 00:00:01]} Ke7 {[%clk 00:00:48]} 29. Nc6+ {[%clk
00:17:36]} {[%emt 00:00:16]} Kf6 {[%clk 00:00:56]} {[%emt 00:00:01]} 30. Qd8+
{[%clk 00:17:42]} {[%emt 00:00:05]} Kf5 {[%clk 00:01:00]} {[%emt 00:00:05]} 31.
Qd7+ {[%clk 00:17:45]} {[%emt 00:00:06]} Kf6 {[%clk 00:00:35]} {[%emt
00:00:36]} 32. g4 {[%clk 00:17:43]} {[%emt 00:00:13]} Nxh4 {[%clk 00:00:25]}
{[%emt 00:00:19]} 33. Qe7+ {[%clk 00:17:51]} {[%emt 00:00:02]} Kg6 {[%clk
00:00:26]} {[%emt 00:00:09]} 34. Qxh4 {[%clk 00:15:48]} {[%emt 00:02:13]} Qxc4
{[%clk 00:00:34]} {[%emt 00:00:03]} 35. Qh5+ {[%clk 00:13:28]} {[%emt
00:02:30]} Kh7 {[%clk 00:00:43]} {[%emt 00:00:02]} 36. Qf5+ {[%clk 00:13:31]}
{[%emt 00:00:07]} Kh8 {[%clk 00:00:39]} {[%emt 00:00:14]} 37. Qc8+ {[%clk
00:13:24]} {[%emt 00:00:16]} Kh7 {[%clk 00:00:32]} {[%emt 00:00:16]} 38. Ne7
{[%clk 00:13:28]} {[%emt 00:00:06]} h5 {[%clk 00:00:23]} {[%emt 00:00:20]} 39.
Qf5+ {[%clk 00:13:00]} {[%emt 00:00:39]} g6 {[%clk 00:00:22]} {[%emt 00:00:10]}
40. Qxf7+ {[%clk 00:13:07]} {[%emt 00:00:03]} 1-0

[Event "Kwalificatie NJK A Groningen"]
[Site "Hoogkerk, Netherlands"]
[Date "2023.02.18"]
[Round "3.4"]
[White "Venema, Katja"]
[Black "Moskalets, Sofia"]
[Result "0-1"]
[TimeControl "55 min. + 10 sec./zet"]
[WhiteElo "1683"]
[BlackElo "1675"]

1. d4 {[%clk 00:55:17]} {[%emt 00:00:03]} Nf6 {[%clk 00:55:05]} {[%emt
00:00:16]} 2. c4 {[%clk 00:55:18]} {[%emt 00:00:08]} g6 {[%clk 00:55:10]}
{[%emt 00:00:05]} 3. Nc3 {[%clk 00:55:16]} {[%emt 00:00:12]} Bg7 {[%clk
00:55:12]} {[%emt 00:00:08]} 4. e4 {[%clk 00:55:17]} {[%emt 00:00:09]} O-O
{[%clk 00:55:14]} {[%emt 00:00:09]} 5. Be2 {[%clk 00:55:18]} {[%emt 00:00:08]}
d6 {[%clk 00:55:12]} {[%emt 00:00:11]} 6. Bg5 {[%clk 00:55:15]} {[%emt
00:00:14]} c6 {[%clk 00:52:01]} {[%emt 00:03:22]} 7. Qd2 {[%clk 00:54:49]}
{[%emt 00:00:36]} Qc7 {[%clk 00:50:34]} {[%emt 00:01:36]} 8. h4 {[%clk
00:54:00]} {[%emt 00:00:58]} e5 {[%clk 00:47:47]} {[%emt 00:02:58]} 9. d5
{[%clk 00:53:28]} {[%emt 00:00:42]} Nbd7 {[%clk 00:43:00]} {[%emt 00:04:57]} 10.
h5 {[%clk 00:52:48]} {[%emt 00:00:49]} cxd5 {[%clk 00:40:11]} {[%emt 00:03:00]}
11. cxd5 {[%clk 00:51:51]} {[%emt 00:01:07]} Nc5 {[%clk 00:38:37]} {[%emt
00:01:43]} 12. Rc1 {[%clk 00:48:49]} {[%emt 00:03:12]} Qd7 {[%emt 00:11:07]} 13.
Rh4 {[%clk 00:46:40]} a5 {[%clk 00:26:12]} {[%emt 00:03:58]} 14. hxg6 {[%clk
00:45:38]} {[%emt 00:01:12]} fxg6 {[%clk 00:26:01]} {[%emt 00:00:21]} 15. Bh6
{[%clk 00:43:19]} {[%emt 00:02:28]} Bxh6 {[%clk 00:24:28]} {[%emt 00:01:44]} 16.
Qxh6 {[%clk 00:43:14]} {[%emt 00:00:15]} Qg7 {[%clk 00:23:14]} {[%emt
00:01:24]} 17. Qg5 {[%clk 00:40:52]} {[%emt 00:02:32]} Bd7 {[%clk 00:21:44]}
{[%emt 00:01:41]} 18. f3 {[%clk 00:39:45]} {[%emt 00:01:16]} Nh5 {[%clk
00:18:59]} {[%emt 00:02:55]} 19. Nh3 {[%clk 00:36:56]} {[%emt 00:02:58]} Bxh3
{[%clk 00:16:32]} {[%emt 00:02:38]} 20. Rxh3 {[%clk 00:36:37]} {[%emt
00:00:28]} Nf4 {[%clk 00:15:50]} {[%emt 00:00:52]} 21. Rh2 {[%clk 00:35:49]}
{[%emt 00:00:58]} Ncd3+ {[%clk 00:15:06]} {[%emt 00:00:55]} 22. Bxd3 {[%clk
00:35:18]} {[%emt 00:00:40]} Nxd3+ {[%clk 00:15:10]} {[%emt 00:00:06]} 23. Ke2
{[%clk 00:35:06]} {[%emt 00:00:22]} Nxc1+ {[%clk 00:15:02]} {[%emt 00:00:19]}
24. Qxc1 {[%clk 00:35:12]} {[%emt 00:00:04]} a4 {[%clk 00:11:36]} {[%emt
00:03:36]} 25. Nb5 {[%clk 00:34:25]} {[%emt 00:00:57]} Qd7 {[%clk 00:08:33]}
{[%emt 00:03:13]} 26. Nc3 {[%clk 00:32:09]} {[%emt 00:02:25]} b5 {[%clk
00:07:25]} {[%emt 00:01:18]} 27. a3 {[%clk 00:31:36]} {[%emt 00:00:44]} Qc7
{[%clk 00:06:10]} {[%emt 00:01:25]} 28. Qh6 {[%clk 00:31:12]} {[%emt 00:00:34]}
Rf7 {[%clk 00:05:37]} {[%emt 00:00:43]} 29. Kd2 {[%clk 00:30:12]} {[%emt
00:01:10]} Qc4 {[%clk 00:05:13]} {[%emt 00:00:34]} 30. Rh1 {[%clk 00:29:12]}
{[%emt 00:01:11]} b4 {[%clk 00:04:55]} {[%emt 00:00:27]} 31. axb4 {[%clk
00:29:01]} {[%emt 00:00:20]} Qxb4 {[%clk 00:04:36]} {[%emt 00:00:30]} 32. Rb1
{[%clk 00:28:18]} {[%emt 00:00:53]} Qd4+ {[%clk 00:02:38]} {[%emt 00:02:08]} 33.
Ke2 {[%clk 00:27:48]} {[%emt 00:00:40]} a3 {[%clk 00:01:57]} {[%emt 00:00:51]}
34. Qd2 {[%clk 00:26:34]} {[%emt 00:01:24]} a2 {[%clk 00:01:19]} {[%emt
00:00:48]} 35. Ra1 {[%clk 00:26:20]} {[%emt 00:00:24]} Qc4+ {[%clk 00:01:01]}
{[%emt 00:00:28]} 36. Qd3 {[%clk 00:26:11]} {[%emt 00:00:18]} Qb3 {[%clk
00:00:50]} {[%emt 00:00:21]} 37. Qd2 {[%emt 00:00:42]} Rb7 {[%clk 00:00:50]} 38.
Nd1 {[%clk 00:25:35]} {[%emt 00:00:25]} Rc8 {[%clk 00:00:36]} {[%emt 00:00:24]}
39. Nc3 {[%clk 00:25:14]} {[%emt 00:00:31]} Qxb2 {[%clk 00:00:38]} {[%emt
00:00:07]} 40. Rxa2 {[%clk 00:25:17]} {[%emt 00:00:08]} Qxc3 {[%clk 00:00:41]}
{[%emt 00:00:07]} 41. Qg5 {[%clk 00:24:44]} {[%emt 00:00:41]} Qc4+ {[%clk
00:00:49]} {[%emt 00:00:03]} 42. Kd3 {[%emt 00:00:18]} 0-1